[Event "GrandPrix_30.05"]
[Site "Chess.com"]
[Date "2020.05.30"]
[Round "8"]
[White "GM_dmitrij"]
[Black "EvgenyRomanov"]
[Result "1-0"]
[WhiteElo "2463"]
[BlackElo "2265"]
[TimeControl "600+2"]
[EndTime "11:59:36 PDT"]
[Termination "GM_dmitrij won on time"]

1. e4 {[%clk 0:10:01.9]} 1... c5 {[%clk 0:09:55.8]} 2. Nf3 {[%clk 0:10:02.7]}
2... Nf6 {[%clk 0:09:56.3]} 3. Nc3 {[%clk 0:09:56.7]} 3... d5 {[%clk 0:09:54]}
4. Bb5+ {[%clk 0:09:49.2]} 4... Bd7 {[%clk 0:09:53.3]} 5. e5 {[%clk 0:09:50.4]}
5... Bxb5 {[%clk 0:09:40.6]} 6. Nxb5 {[%clk 0:09:47.7]} 6... a6 {[%clk
0:09:38.6]} 7. Nc3 {[%clk 0:09:19.8]} 7... d4 {[%clk 0:09:39.2]} 8. exf6 {[%clk
0:08:54.6]} 8... dxc3 {[%clk 0:09:38.5]} 9. bxc3 {[%clk 0:08:09.3]} 9... gxf6
{[%clk 0:09:25]} 10. O-O {[%clk 0:08:08.5]} 10... e6 {[%clk 0:09:20.2]} 11. Rb1
{[%clk 0:08:06.4]} 11... Qc7 {[%clk 0:09:07]} 12. d4 {[%clk 0:08:07]} 12... Nc6
{[%clk 0:08:59.8]} 13. d5 {[%clk 0:07:07]} 13... O-O-O {[%clk 0:08:56.7]} 14. c4
{[%clk 0:06:32.6]} 14... Ne5 {[%clk 0:07:54.7]} 15. Nxe5 {[%clk 0:06:20.5]}
15... Qxe5 {[%clk 0:07:53.4]} 16. Qf3 {[%clk 0:06:05.9]} 16... Bd6 {[%clk
0:05:47.3]} 17. g3 {[%clk 0:06:05.4]} 17... Qf5 {[%clk 0:05:46.4]} 18. Qxf5
{[%clk 0:06:00.5]} 18... exf5 {[%clk 0:05:47.5]} 19. f4 {[%clk 0:05:43.3]} 19...
Rde8 {[%clk 0:03:57.7]} 20. Bb2 {[%clk 0:05:14.4]} 20... Re4 {[%clk 0:03:57.6]}
21. Rfe1 {[%clk 0:05:07.9]} 21... Rhe8 {[%clk 0:03:52.7]} 22. Kf1 {[%clk
0:04:45.1]} 22... Bc7 {[%clk 0:02:01]} 23. Bxf6 {[%clk 0:04:16.4]} 23... Ba5
{[%clk 0:02:01.3]} 24. c3 {[%clk 0:04:12.8]} 24... b6 {[%clk 0:02:02]} 25. Rxe4
{[%clk 0:03:17.2]} 25... Rxe4 {[%clk 0:02:01.8]} 26. Re1 {[%clk 0:03:18.7]}
26... Rxc4 {[%clk 0:02:02.7]} 27. Re8+ {[%clk 0:03:19.4]} 27... Kc7 {[%clk
0:01:19.8]} 28. Ke2 {[%clk 0:02:13.2]} 28... Re4+ {[%clk 0:00:51.4]} 29. Rxe4
{[%clk 0:02:12.2]} 29... fxe4 {[%clk 0:00:53.3]} 30. Ke3 {[%clk 0:02:02.4]}
30... b5 {[%clk 0:00:48.6]} 31. Kxe4 {[%clk 0:02:02.5]} 31... c4 {[%clk
0:00:49]} 32. g4 {[%clk 0:01:50.4]} 32... Kd7 {[%clk 0:00:48.3]} 33. h4 {[%clk
0:01:49.7]} 33... Bc7 {[%clk 0:00:46.1]} 34. h5 {[%clk 0:01:04.5]} 34... a5
{[%clk 0:00:44.8]} 35. g5 {[%clk 0:00:51.6]} 35... b4 {[%clk 0:00:44.3]} 36.
cxb4 {[%clk 0:00:53.5]} 36... axb4 {[%clk 0:00:45.7]} 37. f5 {[%clk 0:00:54.9]}
37... c3 {[%clk 0:00:18.5]} 38. g6 {[%clk 0:00:12.1]} 38... fxg6 {[%clk
0:00:20.4]} 39. fxg6 {[%clk 0:00:13.6]} 39... hxg6 {[%clk 0:00:11.1]} 40. h6
{[%clk 0:00:15]} 40... c2 {[%clk 0:00:09.3]} 41. Bb2 {[%clk 0:00:15.8]} 41...
Bd8 {[%clk 0:00:08.1]} 42. Kd3 {[%clk 0:00:15.5]} 1-0

[Event "GrandPrix_30.05"]
[Site "Chess.com"]
[Date "2020.05.30"]
[Round "8"]
[White "Olga_Girya"]
[Black "Alex_Molchanov"]
[Result "0-1"]
[WhiteElo "2169"]
[BlackElo "2094"]
[TimeControl "600+2"]
[EndTime "11:59:39 PDT"]
[Termination "Alex_Molchanov won by resignation"]

1. d4 {[%clk 0:10:01.9]} 1... d5 {[%clk 0:09:55.5]} 2. c4 {[%clk 0:10:02.2]}
2... e6 {[%clk 0:09:56.3]} 3. Nf3 {[%clk 0:10:02.4]} 3... Nf6 {[%clk 0:09:56.8]}
4. Nc3 {[%clk 0:10:03]} 4... Be7 {[%clk 0:09:57.1]} 5. Bf4 {[%clk 0:10:03]} 5...
O-O {[%clk 0:09:56.3]} 6. e3 {[%clk 0:10:03.5]} 6... Nbd7 {[%clk 0:09:55.9]} 7.
a3 {[%clk 0:10:00]} 7... c6 {[%clk 0:09:35.1]} 8. h3 {[%clk 0:09:50.1]} 8... a6
{[%clk 0:08:47.4]} 9. c5 {[%clk 0:08:00.8]} 9... b6 {[%clk 0:08:35.2]} 10. b4
{[%clk 0:08:01]} 10... a5 {[%clk 0:08:34]} 11. Bd3 {[%clk 0:07:52.3]} 11... Ba6
{[%clk 0:08:24.6]} 12. O-O {[%clk 0:07:29.6]} 12... Qc8 {[%clk 0:08:21.3]} 13.
Qe2 {[%clk 0:05:48.6]} 13... Bxd3 {[%clk 0:08:03.1]} 14. Qxd3 {[%clk 0:05:49.3]}
14... Qb7 {[%clk 0:08:04.7]} 15. Rfc1 {[%clk 0:05:05.6]} 15... Ra7 {[%clk
0:07:34.6]} 16. Qc2 {[%clk 0:05:02.4]} 16... Rfa8 {[%clk 0:07:01.1]} 17. Rab1
{[%clk 0:05:02.8]} 17... axb4 {[%clk 0:07:00.5]} 18. axb4 {[%clk 0:05:04.7]}
18... b5 {[%clk 0:05:23.7]} 19. Nd2 {[%clk 0:04:54]} 19... Bd8 {[%clk
0:05:20.9]} 20. Nb3 {[%clk 0:04:52.4]} 20... Bc7 {[%clk 0:05:17.1]} 21. Bxc7
{[%clk 0:04:48.8]} 21... Qxc7 {[%clk 0:05:19]} 22. f4 {[%clk 0:04:40.1]} 22...
h6 {[%clk 0:04:29.2]} 23. Na5 {[%clk 0:04:36.7]} 23... Nf8 {[%clk 0:04:22.7]}
24. Rb2 {[%clk 0:03:40.1]} 24... Ng6 {[%clk 0:04:22.7]} 25. Qf2 {[%clk
0:03:35.7]} 25... Ne7 {[%clk 0:04:15.8]} 26. Qf3 {[%clk 0:03:14.6]} 26... Ne8
{[%clk 0:03:41.9]} 27. g4 {[%clk 0:03:02]} 27... f5 {[%clk 0:03:37.4]} 28. Rg2
{[%clk 0:02:55.8]} 28... Nf6 {[%clk 0:03:33.4]} 29. g5 {[%clk 0:02:12.2]} 29...
hxg5 {[%clk 0:03:26.7]} 30. fxg5 {[%clk 0:02:03.7]} 30... Ne4 {[%clk 0:03:20.9]}
31. g6 {[%clk 0:01:40.2]} 31... Kf8 {[%clk 0:02:54.1]} 32. Nxe4 {[%clk
0:01:13.7]} 32... dxe4 {[%clk 0:02:53.9]} 33. Qh5 {[%clk 0:01:15.2]} 33... Ng8
{[%clk 0:02:04.2]} 34. Rf1 {[%clk 0:01:10.1]} 34... Ra6 {[%clk 0:01:29.9]} 35.
Qh8 {[%clk 0:00:50.6]} 35... Qe7 {[%clk 0:01:19.8]} 36. Qh5 {[%clk 0:00:23.5]}
36... Nh6 {[%clk 0:01:13.5]} 37. Rg5 {[%clk 0:00:23]} 37... Rxa5 {[%clk
0:00:54.9]} 38. bxa5 {[%clk 0:00:18.8]} 38... Rxa5 {[%clk 0:00:56.8]} 39. Rgxf5+
{[%clk 0:00:15.4]} 39... exf5 {[%clk 0:00:54.3]} 40. Rxf5+ {[%clk 0:00:15.9]}
40... Kg8 {[%clk 0:00:49.6]} 41. Rf1 {[%clk 0:00:05.5]} 41... Ra8 {[%clk
0:00:35.5]} 42. d5 {[%clk 0:00:06.1]} 42... Qxc5 {[%clk 0:00:24.7]} 43. Kh1
{[%clk 0:00:06.9]} 43... Qxd5 {[%clk 0:00:20.2]} 44. Qe2 {[%clk 0:00:07.6]}
44... Rf8 {[%clk 0:00:20.1]} 0-1

[Event "GrandPrix_30.05"]
[Site "Chess.com"]
[Date "2020.05.30"]
[Round "8"]
[White "DinaBelenkaya"]
[Black "lelajavakhishvili"]
[Result "1-0"]
[WhiteElo "1657"]
[BlackElo "1992"]
[TimeControl "600+2"]
[EndTime "11:59:40 PDT"]
[Termination "DinaBelenkaya won by resignation"]

1. e4 {[%clk 0:10:01.9]} 1... d6 {[%clk 0:10:00.2]} 2. d4 {[%clk 0:10:02.2]}
2... Nf6 {[%clk 0:10:01.4]} 3. Nc3 {[%clk 0:10:02.9]} 3... g6 {[%clk 0:10:01.8]}
4. f4 {[%clk 0:10:04.1]} 4... Bg7 {[%clk 0:10:01.9]} 5. Bd3 {[%clk 0:09:30.7]}
5... O-O {[%clk 0:09:55.6]} 6. Nf3 {[%clk 0:09:30.3]} 6... Bg4 {[%clk 0:09:51]}
7. h3 {[%clk 0:07:48]} 7... Bxf3 {[%clk 0:09:50]} 8. Qxf3 {[%clk 0:07:49.7]}
8... Nc6 {[%clk 0:09:51.2]} 9. Be3 {[%clk 0:06:49.6]} 9... e5 {[%clk 0:09:49.3]}
10. dxe5 {[%clk 0:06:27.9]} 10... dxe5 {[%clk 0:09:48.3]} 11. f5 {[%clk
0:04:15.7]} 11... Nd4 {[%clk 0:09:42.9]} 12. Qf2 {[%clk 0:04:09.7]} 12... c5
{[%clk 0:09:36.7]} 13. O-O {[%clk 0:03:52]} 13... Rc8 {[%clk 0:08:49.5]} 14. b3
{[%clk 0:03:26.7]} 14... Qa5 {[%clk 0:08:09.2]} 15. Nd5 {[%clk 0:03:18.9]} 15...
Nxd5 {[%clk 0:07:56.7]} 16. exd5 {[%clk 0:03:20.8]} 16... e4 {[%clk 0:07:34.6]}
17. f6 {[%clk 0:03:09.2]} 17... Bh8 {[%clk 0:07:17.9]} 18. Bxe4 {[%clk
0:02:48.6]} 18... Rfe8 {[%clk 0:07:05.5]} 19. Bd2 {[%clk 0:02:35.1]} 19... Qb6
{[%clk 0:06:53.3]} 20. Rae1 {[%clk 0:02:34.7]} 20... Re5 {[%clk 0:05:43.4]} 21.
c3 {[%clk 0:00:58.3]} 21... Nb5 {[%clk 0:05:25.2]} 22. c4 {[%clk 0:00:51.1]}
22... Nd4 {[%clk 0:05:25.5]} 23. Bxg6 {[%clk 0:00:49.8]} 23... Rxe1 {[%clk
0:04:48.9]} 24. Bxh7+ {[%clk 0:00:50.8]} 24... Kxh7 {[%clk 0:04:49.8]} 25. Qh4+
{[%clk 0:00:52.1]} 25... Kg8 {[%clk 0:04:51.1]} 26. Qg4+ {[%clk 0:00:53.5]}
26... Kh7 {[%clk 0:04:47.6]} 27. Bxe1 {[%clk 0:00:51.6]} 27... Re8 {[%clk
0:04:26.5]} 28. Qh5+ {[%clk 0:00:20.3]} 28... Kg8 {[%clk 0:04:26.7]} 29. Qg5+
{[%clk 0:00:21.2]} 29... Kf8 {[%clk 0:03:48.6]} 30. Bd2 {[%clk 0:00:17.2]} 30...
Qd6 {[%clk 0:03:14.4]} 31. Kh1 {[%clk 0:00:18.2]} 31... Qe5 {[%clk 0:03:03]} 32.
Qh6+ {[%clk 0:00:09.7]} 32... Kg8 {[%clk 0:03:04]} 33. Rf4 {[%clk 0:00:10.8]}
33... Bxf6 {[%clk 0:02:33.6]} 34. Rxf6 {[%clk 0:00:12.1]} 34... Ne2 {[%clk
0:02:11.5]} 35. Qg5+ {[%clk 0:00:13.2]} 35... Qxg5 {[%clk 0:02:06.1]} 36. Bxg5
{[%clk 0:00:15.1]} 36... Ng3+ {[%clk 0:02:07.3]} 37. Kh2 {[%clk 0:00:16.3]}
37... Ne4 {[%clk 0:02:07.2]} 38. Rf5 {[%clk 0:00:16.9]} 38... Nd6 {[%clk
0:01:57.5]} 39. Rf3 {[%clk 0:00:12.8]} 39... Re2 {[%clk 0:01:58.1]} 40. a3
{[%clk 0:00:11.3]} 40... b5 {[%clk 0:01:56.9]} 41. Bf4 {[%clk 0:00:10.9]} 41...
Ne4 {[%clk 0:01:37.3]} 42. cxb5 {[%clk 0:00:11.1]} 42... Kf8 {[%clk 0:01:10.8]}
43. h4 {[%clk 0:00:12.4]} 43... Nf6 {[%clk 0:00:59.2]} 44. d6 {[%clk 0:00:12]}
44... Ke8 {[%clk 0:00:58.2]} 45. Bg5 {[%clk 0:00:05.6]} 45... Ng4+ {[%clk
0:00:53.2]} 46. Kg3 {[%clk 0:00:06]} 46... Ne5 {[%clk 0:00:52.7]} 47. Re3 {[%clk
0:00:06.8]} 47... Rxe3+ {[%clk 0:00:50.7]} 48. Bxe3 {[%clk 0:00:08.7]} 48... Nd7
{[%clk 0:00:49.4]} 49. h5 {[%clk 0:00:09.5]} 49... f6 {[%clk 0:00:50.8]} 50. h6
{[%clk 0:00:09.2]} 50... Kf7 {[%clk 0:00:52.7]} 51. Kf4 {[%clk 0:00:10]} 51...
Kg6 {[%clk 0:00:54.3]} 52. Ke4 {[%clk 0:00:11]} 52... Nb6 {[%clk 0:00:51.8]} 53.
a4 {[%clk 0:00:11.4]} 1-0

[Event "GrandPrix_30.05"]
[Site "Chess.com"]
[Date "2020.05.30"]
[Round "8"]
[White "Msb2"]
[Black "Bacyanide"]
[Result "1-0"]
[WhiteElo "2651"]
[BlackElo "2478"]
[TimeControl "600+2"]
[EndTime "11:59:53 PDT"]
[Termination "Msb2 won by resignation"]

1. d4 {[%clk 0:10:01.9]} 1... d5 {[%clk 0:10:00.8]} 2. c4 {[%clk 0:10:02.7]}
2... e6 {[%clk 0:10:01.6]} 3. Nc3 {[%clk 0:10:04.1]} 3... c5 {[%clk 0:10:01.7]}
4. cxd5 {[%clk 0:10:05]} 4... exd5 {[%clk 0:10:02.7]} 5. Nf3 {[%clk 0:10:06.5]}
5... Nf6 {[%clk 0:10:03.2]} 6. Bg5 {[%clk 0:10:06.8]} 6... Be6 {[%clk
0:10:02.2]} 7. e3 {[%clk 0:10:07.8]} 7... c4 {[%clk 0:10:02.8]} 8. Be2 {[%clk
0:10:09]} 8... Bb4 {[%clk 0:10:00.6]} 9. O-O {[%clk 0:10:09.9]} 9... O-O {[%clk
0:09:58.1]} 10. Qc2 {[%clk 0:10:10.6]} 10... Nbd7 {[%clk 0:09:41.1]} 11. Ne5
{[%clk 0:10:10.3]} 11... Qc7 {[%clk 0:08:35.9]} 12. Bf4 {[%clk 0:08:41.5]} 12...
Qa5 {[%clk 0:08:12.2]} 13. a3 {[%clk 0:08:09.5]} 13... Bxc3 {[%clk 0:08:11.8]}
14. Nxd7 {[%clk 0:08:10]} 14... Bxd7 {[%clk 0:08:03.1]} 15. bxc3 {[%clk
0:08:11.3]} 15... Ne4 {[%clk 0:07:58.5]} 16. Rfc1 {[%clk 0:07:49.6]} 16... Bf5
{[%clk 0:07:44.3]} 17. Qb2 {[%clk 0:07:49.7]} 17... g5 {[%clk 0:07:29.6]} 18.
Be5 {[%clk 0:07:37]} 18... f6 {[%clk 0:07:25.9]} 19. Bg3 {[%clk 0:07:06.8]}
19... Rf7 {[%clk 0:07:20.6]} 20. f3 {[%clk 0:06:10.8]} 20... Nxg3 {[%clk
0:07:19.9]} 21. hxg3 {[%clk 0:06:12.7]} 21... Re8 {[%clk 0:05:20.1]} 22. e4
{[%clk 0:06:09.8]} 22... dxe4 {[%clk 0:05:20.7]} 23. Bxc4 {[%clk 0:06:10.1]}
23... Be6 {[%clk 0:05:21.8]} 24. Bxe6 {[%clk 0:05:18.8]} 24... Rxe6 {[%clk
0:05:21.5]} 25. Re1 {[%clk 0:05:18.8]} 25... Qd5 {[%clk 0:04:41.3]} 26. Qa2
{[%clk 0:04:38.4]} 26... Qxa2 {[%clk 0:04:06.5]} 27. Rxa2 {[%clk 0:04:40.3]}
27... Rc7 {[%clk 0:03:58.6]} 28. Rc2 {[%clk 0:04:05.3]} 28... e3 {[%clk
0:03:47.3]} 29. g4 {[%clk 0:03:57.4]} 29... Kf7 {[%clk 0:03:42.7]} 30. Kf1
{[%clk 0:03:57.9]} 30... h5 {[%clk 0:03:22.6]} 31. Ke2 {[%clk 0:03:43.3]} 31...
hxg4 {[%clk 0:03:22]} 32. fxg4 {[%clk 0:03:45.2]} 32... Re4 {[%clk 0:02:53.9]}
33. Kd3 {[%clk 0:03:24.2]} 33... Rxg4 {[%clk 0:02:54.3]} 34. Rxe3 {[%clk
0:03:25.9]} 34... Rf4 {[%clk 0:02:48.8]} 35. c4 {[%clk 0:03:23.3]} 35... Rd7
{[%clk 0:02:39.9]} 36. Re4 {[%clk 0:03:19.9]} 36... Rf1 {[%clk 0:02:21.4]} 37.
d5 {[%clk 0:03:10.4]} 37... Ra1 {[%clk 0:02:12.1]} 38. Rc3 {[%clk 0:03:01.5]}
38... b5 {[%clk 0:02:00]} 39. cxb5 {[%clk 0:02:41.8]} 39... Rxd5+ {[%clk
0:01:55.3]} 40. Kc4 {[%clk 0:02:43.2]} 40... Rd7 {[%clk 0:01:12.5]} 41. Kb4
{[%clk 0:02:39.4]} 41... f5 {[%clk 0:01:05.4]} 42. Rec4 {[%clk 0:02:34]} 42...
f4 {[%clk 0:00:28.5]} 43. g3 {[%clk 0:02:27.6]} 43... Rf1 {[%clk 0:00:21.5]} 44.
gxf4 {[%clk 0:02:17.1]} 44... Rxf4 {[%clk 0:00:22]} 45. Rxf4+ {[%clk 0:02:18.2]}
45... gxf4 {[%clk 0:00:23.9]} 46. Rc4 {[%clk 0:02:20.1]} 46... Ke6 {[%clk
0:00:16.1]} 47. Rxf4 {[%clk 0:02:21]} 47... Rd3 {[%clk 0:00:14.8]} 48. a4 {[%clk
0:02:18.2]} 48... Kd6 {[%clk 0:00:08.2]} 49. Rf7 {[%clk 0:02:13.4]} 49... a6
{[%clk 0:00:09.4]} 50. Rf6+ {[%clk 0:02:14.8]} 50... Kc7 {[%clk 0:00:08.9]} 51.
Rxa6 {[%clk 0:02:16.7]} 51... Rd4+ {[%clk 0:00:09.7]} 52. Ka5 {[%clk 0:02:14.7]}
52... Kb7 {[%clk 0:00:10.7]} 53. Rg6 {[%clk 0:02:15.4]} 53... Rd7 {[%clk
0:00:10.6]} 54. Kb4 {[%clk 0:02:15.2]} 54... Rd4+ {[%clk 0:00:11.2]} 55. Kb3
{[%clk 0:02:14.4]} 55... Rf4 {[%clk 0:00:11.7]} 56. Rc6 {[%clk 0:02:09.5]} 56...
Rf3+ {[%clk 0:00:11.5]} 57. Kb4 {[%clk 0:02:10]} 57... Rf4+ {[%clk 0:00:12.3]}
58. Rc4 {[%clk 0:02:11.2]} 58... Rf1 {[%clk 0:00:13.1]} 59. Rh4 {[%clk
0:02:08.9]} 59... Rb1+ {[%clk 0:00:13.9]} 60. Ka5 {[%clk 0:02:10.3]} 60... Rf1
{[%clk 0:00:15.3]} 61. Rh7+ {[%clk 0:02:11.3]} 61... Ka8 {[%clk 0:00:16.6]} 62.
Ka6 {[%clk 0:02:10.9]} 62... Rf6+ {[%clk 0:00:17.1]} 63. b6 {[%clk 0:02:06.4]}
63... Rf8 {[%clk 0:00:18.6]} 64. a5 {[%clk 0:02:07.2]} 64... Kb8 {[%clk
0:00:19.8]} 65. Rc7 {[%clk 0:02:07.6]} 65... Re8 {[%clk 0:00:19.8]} 66. Kb5
{[%clk 0:02:08.2]} 66... Re5+ {[%clk 0:00:20.2]} 67. Rc5 {[%clk 0:02:09.3]}
67... Re8 {[%clk 0:00:21]} 68. a6 {[%clk 0:02:08.6]} 68... Rh8 {[%clk
0:00:22.1]} 69. a7+ {[%clk 0:01:57]} 69... Kb7 {[%clk 0:00:20.2]} 70. Rc7+
{[%clk 0:01:58.1]} 70... Ka8 {[%clk 0:00:21.4]} 71. Ka6 {[%clk 0:01:59.7]} 71...
Rb8 {[%clk 0:00:19]} 72. axb8=Q+ {[%clk 0:02:00.2]} 72... Kxb8 {[%clk
0:00:20.5]} 73. Rc2 {[%clk 0:01:58.4]} 1-0

[Event "GrandPrix_30.05"]
[Site "Chess.com"]
[Date "2020.05.30"]
[Round "8"]
[White "HElissalt"]
[Black "LazovT"]
[Result "0-1"]
[WhiteElo "2069"]
[BlackElo "2235"]
[TimeControl "600+2"]
[EndTime "11:59:56 PDT"]
[Termination "LazovT won by resignation"]

1. d3 {[%clk 0:10:01.9]} 1... e5 {[%clk 0:09:47.2]} 2. d4 {[%clk 0:10:03.8]}
2... exd4 {[%clk 0:09:43.8]} 3. Qxd4 {[%clk 0:09:47.9]} 3... Nc6 {[%clk
0:09:44.2]} 4. Qa4 {[%clk 0:09:41.6]} 4... d5 {[%clk 0:09:45.2]} 5. Nf3 {[%clk
0:09:41.7]} 5... Nf6 {[%clk 0:09:37.3]} 6. c3 {[%clk 0:09:39.3]} 6... Bc5 {[%clk
0:09:23.1]} 7. Bg5 {[%clk 0:09:22.5]} 7... h6 {[%clk 0:09:15.2]} 8. Bh4 {[%clk
0:08:53.9]} 8... Qe7 {[%clk 0:09:15.2]} 9. Nbd2 {[%clk 0:07:59.5]} 9... Bd7
{[%clk 0:08:54.9]} 10. Qc2 {[%clk 0:06:46.1]} 10... a5 {[%clk 0:08:49.4]} 11. e3
{[%clk 0:06:35.6]} 11... g5 {[%clk 0:07:48.9]} 12. Bg3 {[%clk 0:06:34.5]} 12...
Nh5 {[%clk 0:07:39.6]} 13. O-O-O {[%clk 0:06:26]} 13... O-O-O {[%clk 0:07:34]}
14. Bd3 {[%clk 0:06:22.4]} 14... Nxg3 {[%clk 0:07:29]} 15. hxg3 {[%clk
0:06:22.7]} 15... Ne5 {[%clk 0:07:29.7]} 16. Bf5 {[%clk 0:06:19.8]} 16... Kb8
{[%clk 0:07:09.9]} 17. Nxe5 {[%clk 0:06:03.8]} 17... Qxe5 {[%clk 0:07:11.8]} 18.
Bxd7 {[%clk 0:06:04.1]} 18... Rxd7 {[%clk 0:07:13.7]} 19. Nc4 {[%clk 0:06:04]}
19... Qf6 {[%clk 0:07:01.1]} 20. Nxa5 {[%clk 0:06:03.4]} 20... Bb6 {[%clk
0:06:38.2]} 21. Nb3 {[%clk 0:05:52.3]} 21... h5 {[%clk 0:06:38.6]} 22. c4 {[%clk
0:05:43.4]} 22... c6 {[%clk 0:06:30.1]} 23. Kb1 {[%clk 0:05:29]} 23... h4 {[%clk
0:06:23.8]} 24. g4 {[%clk 0:05:23.9]} 24... Re8 {[%clk 0:06:20.2]} 25. c5 {[%clk
0:04:39.8]} 25... Bc7 {[%clk 0:06:20.3]} 26. Nd4 {[%clk 0:04:40.9]} 26... Re4
{[%clk 0:06:18.9]} 27. Rd2 {[%clk 0:03:29.2]} 27... Be5 {[%clk 0:05:31.3]} 28.
Nf5 {[%clk 0:03:24.3]} 28... Rxg4 {[%clk 0:05:30.6]} 29. f3 {[%clk 0:03:24.3]}
29... Rb4 {[%clk 0:05:31.1]} 30. b3 {[%clk 0:03:18.9]} 30... Qd8 {[%clk
0:05:30.9]} 31. Rhd1 {[%clk 0:03:04]} 31... Qa5 {[%clk 0:05:08.5]} 32. Nd4
{[%clk 0:02:58.2]} 32... Re7 {[%clk 0:04:25]} 33. Nf5 {[%clk 0:02:34.4]} 33...
Re8 {[%clk 0:04:18.4]} 34. e4 {[%clk 0:02:24.5]} 34... dxe4 {[%clk 0:04:03.6]}
35. fxe4 {[%clk 0:02:23.7]} 35... Rb5 {[%clk 0:04:04.7]} 36. Nd6 {[%clk
0:01:46.9]} 36... Rxc5 {[%clk 0:04:00.3]} 37. Nc4 {[%clk 0:01:47.3]} 37... Qc3
{[%clk 0:02:43.1]} 38. Qxc3 {[%clk 0:00:47.8]} 38... Bxc3 {[%clk 0:02:45]} 39.
Rd7 {[%clk 0:00:47.3]} 39... Rxc4 {[%clk 0:02:29.9]} 40. bxc4 {[%clk 0:00:47]}
40... Rxe4 {[%clk 0:02:31.4]} 41. Rc1 {[%clk 0:00:21.1]} 41... Rxc4 {[%clk
0:02:13.4]} 42. a3 {[%clk 0:00:20.9]} 42... Rd4 {[%clk 0:01:41]} 43. Rxf7 {[%clk
0:00:17.7]} 43... Rd3 {[%clk 0:01:27]} 44. Kc2 {[%clk 0:00:18]} 44... Rg3 {[%clk
0:01:25]} 45. Rd1 {[%clk 0:00:18.6]} 45... Ka7 {[%clk 0:00:53.1]} 46. Rdd7
{[%clk 0:00:17.9]} 46... Ka6 {[%clk 0:00:54.4]} 47. Rxb7 {[%clk 0:00:18.5]}
47... Bd4 {[%clk 0:00:53.3]} 48. Rbd7 {[%clk 0:00:11]} 48... c5 {[%clk
0:00:49.5]} 49. Rf8 {[%clk 0:00:07.1]} 49... Kb5 {[%clk 0:00:49.7]} 50. Rc8
{[%clk 0:00:05.4]} 50... Kc4 {[%clk 0:00:50.2]} 51. Kd1 {[%clk 0:00:05.6]} 51...
Rxg2 {[%clk 0:00:49.3]} 52. Ke1 {[%clk 0:00:06.1]} 52... h3 {[%clk 0:00:49.2]}
53. Kf1 {[%clk 0:00:02.8]} 53... Rg1+ {[%clk 0:00:46.8]} 54. Ke2 {[%clk
0:00:03.8]} 54... h2 {[%clk 0:00:48.1]} 0-1

[Event "GrandPrix_30.05"]
[Site "Chess.com"]
[Date "2020.05.30"]
[Round "8"]
[White "Novoselski"]
[Black "RitvarsReimanis"]
[Result "1/2-1/2"]
[WhiteElo "2316"]
[BlackElo "2192"]
[TimeControl "600+2"]
[EndTime "12:00:00 PDT"]
[Termination "Game drawn by agreement"]

1. e4 {[%clk 0:10:01.9]} 1... c5 {[%clk 0:10:00.7]} 2. Nc3 {[%clk 0:10:00.6]}
2... Nc6 {[%clk 0:10:01]} 3. Nf3 {[%clk 0:10:01.4]} 3... Nf6 {[%clk 0:10:01.2]}
4. Bb5 {[%clk 0:10:01.4]} 4... Nd4 {[%clk 0:09:54.6]} 5. e5 {[%clk 0:10:00.9]}
5... Nxb5 {[%clk 0:08:15.5]} 6. Nxb5 {[%clk 0:10:02.8]} 6... Qb6 {[%clk
0:07:58.2]} 7. c4 {[%clk 0:09:43.2]} 7... a6 {[%clk 0:07:57]} 8. Nc3 {[%clk
0:09:40.4]} 8... Ng8 {[%clk 0:07:52.4]} 9. d4 {[%clk 0:08:56.9]} 9... cxd4
{[%clk 0:07:38.2]} 10. Nxd4 {[%clk 0:08:53.7]} 10... e6 {[%clk 0:07:12.3]} 11.
O-O {[%clk 0:08:43.6]} 11... d6 {[%clk 0:07:05.8]} 12. Be3 {[%clk 0:08:30.8]}
12... Qc7 {[%clk 0:06:44.1]} 13. exd6 {[%clk 0:07:38.7]} 13... Bxd6 {[%clk
0:06:34.3]} 14. g3 {[%clk 0:07:26.2]} 14... Bd7 {[%clk 0:06:29.1]} 15. Ne4
{[%clk 0:07:14.1]} 15... Be7 {[%clk 0:06:14.3]} 16. c5 {[%clk 0:07:11.5]} 16...
Nf6 {[%clk 0:06:06.4]} 17. Nd6+ {[%clk 0:06:27]} 17... Bxd6 {[%clk 0:05:36.7]}
18. cxd6 {[%clk 0:06:28.9]} 18... Qxd6 {[%clk 0:05:38.1]} 19. Qb3 {[%clk
0:05:50.5]} 19... O-O {[%clk 0:05:20.9]} 20. Rfd1 {[%clk 0:04:57.8]} 20... Nd5
{[%clk 0:05:01.2]} 21. Nc2 {[%clk 0:04:19.5]} 21... Bc6 {[%clk 0:04:44.5]} 22.
Bf4 {[%clk 0:03:57.4]} 22... Qd7 {[%clk 0:04:21.2]} 23. a4 {[%clk 0:03:40.7]}
23... Qe7 {[%clk 0:03:52]} 24. Bd2 {[%clk 0:03:33.2]} 24... Qf6 {[%clk
0:03:44.4]} 25. Ne1 {[%clk 0:03:25.9]} 25... Rac8 {[%clk 0:03:19.1]} 26. Rac1
{[%clk 0:03:08.5]} 26... Qf5 {[%clk 0:03:18.6]} 27. Rc4 {[%clk 0:02:57.3]} 27...
Nf6 {[%clk 0:02:38.2]} 28. Rf4 {[%clk 0:02:42.1]} 28... Qd5 {[%clk 0:02:39.5]}
29. Qxd5 {[%clk 0:02:37.9]} 29... Bxd5 {[%clk 0:02:41.4]} 30. Bc3 {[%clk
0:02:33.4]} 30... Ne4 {[%clk 0:02:29.7]} 31. Bb4 {[%clk 0:02:22.5]} 31... Rfd8
{[%clk 0:02:22.4]} 32. Ba5 {[%clk 0:02:17.4]} 32... Re8 {[%clk 0:02:16.5]} 33.
f3 {[%clk 0:02:17.6]} 33... Nd6 {[%clk 0:01:34.5]} 34. Bc3 {[%clk 0:02:00.8]}
34... b5 {[%clk 0:01:33.7]} 35. axb5 {[%clk 0:01:53.2]} 35... Nxb5 {[%clk
0:01:35.6]} 36. Ba5 {[%clk 0:01:45.6]} 36... g5 {[%clk 0:01:07]} 37. Rg4 {[%clk
0:01:38.1]} 37... h6 {[%clk 0:01:08.3]} 38. h4 {[%clk 0:01:37.5]} 38... f5
{[%clk 0:01:09.3]} 39. Rb4 {[%clk 0:01:37.2]} 39... Kf7 {[%clk 0:01:07.4]} 40.
Kf2 {[%clk 0:01:31.5]} 40... Nd6 {[%clk 0:00:36.4]} 41. Rb6 {[%clk 0:01:09.2]}
41... Nc4 {[%clk 0:00:29]} 42. Rxa6 {[%clk 0:01:07.8]} 42... Nxb2 {[%clk
0:00:24.4]} 43. Rb1 {[%clk 0:01:00.3]} 43... Nc4 {[%clk 0:00:25.3]} 44. Bc3
{[%clk 0:00:52]} 44... gxh4 {[%clk 0:00:25.6]} 45. gxh4 {[%clk 0:00:51.4]} 45...
Ra8 {[%clk 0:00:25.2]} 46. Rba1 {[%clk 0:00:48.4]} 46... Rxa6 {[%clk 0:00:24.4]}
47. Rxa6 {[%clk 0:00:50.3]} 47... Ra8 {[%clk 0:00:25.5]} 48. Rxa8 {[%clk
0:00:48.8]} 48... Bxa8 {[%clk 0:00:27.4]} 49. Nd3 {[%clk 0:00:48.6]} 49... Bb7
{[%clk 0:00:17.8]} 50. Bd4 {[%clk 0:00:39.8]} 50... Bd5 {[%clk 0:00:17.5]} 51.
f4 {[%clk 0:00:35]} 51... Kg6 {[%clk 0:00:15.8]} 52. Ne5+ {[%clk 0:00:32.6]}
52... Nxe5 {[%clk 0:00:16.5]} 53. Bxe5 {[%clk 0:00:32.5]} 53... h5 {[%clk
0:00:18]} 54. Kg3 {[%clk 0:00:32.5]} 54... Kf7 {[%clk 0:00:18.5]} 1/2-1/2